[Event "1st Sergiy Shystarev Memorial 2020"]
[Site "Kyiv"]
[Date "2020.08.29"]
[Round "7.6"]
[White "Zubarev, Alexander"]
[Black "Katsman, Mikhail"]
[Result "1-0"]
[ECO "B34"]
[WhiteElo "2430"]
[BlackElo "2225"]
[Annotator "ChessBase"]
[PlyCount "65"]
[EventDate "2020.08.25"]
[EventCountry "UKR"]
[SourceTitle "playchess.com"]
[Source "ChessBase"]
[SourceQuality "1"]
[TimeControl "5400+30"]

1. e4 {[%emt 0:14:19]} c5 {[%emt 0:00:00]} 2. Nf3 {[%emt 0:00:05]} Nc6 {[%emt 0:00:00]} 3. d4 {[%emt 0:00:10]} cxd4 {[%emt 0:00:10]} 4. Nxd4 {[%emt 0:00:05]} g6 {[%emt 0:00:43]} 5. Nc3 {[%emt 0:01:47]} Bg7 {[%emt 0:00:25]} 6. Be3 {[%emt 0:00:05]} Nf6 {[%emt 0:00:14]} 7. Nxc6 {[%emt 0:05:33]} dxc6 {[%emt 0:00:21]} 8. Qxd8+ {[%emt 0:00:07]} Kxd8 {[%emt 0:00:02]} 9. O-O-O+ {[%emt 0:00:09]} Nd7 {[%emt 0:02:37]} 10. f4 {[%emt 0:07:29]} Ke8 {[%emt 0:02:40]} 11. e5 {[%emt 0:00:58]} Nb6 {[%emt 0:01:30]} 12. Bxb6 axb6 {[%emt 0:00:13]} 13. Nb5 {[%emt 0:06:44]} Bxe5 {[%emt 0:01:52]} 14. fxe5 {[%emt 0:00:23]} cxb5 15. Bxb5+ {[%emt 0:00:08]} Kf8 {[%emt 0:00:41]} 16. Rd8+ {[%emt 0:04:48]} Kg7 {[%emt 0:00:02]} 17. Rxh8 Kxh8 {[%emt 0:00:09]} 18. a4 {[%emt 0:04:00]} Bf5 {[%emt 0:01:06]} 19. c4 {[%emt 0:05:57]} Kg7 {[%emt 0:00:33]} 20. Rd1 {[%emt 0:05:02]} Rc8 {[%emt 0:00:06]} 21. b4 {[%emt 0:00:55]} f6 {[%emt 0:03:33]} 22. exf6+ {[%emt 0:00:33]} Kxf6 {[%emt 0:00:01]} 23. Kb2 {[%emt 0:00:31]} Rc7 {[%emt 0:02:36]} 24. Kc3 {[%emt 0:03:26]} g5 {[%emt 0:00:46]} 25. Rd8 {[%emt 0:04:43]} h5 {[%emt 0:00:46]} 26. Kd4 {[%emt 0:03:52]} e5+ {[%emt 0:11:15]} 27. Ke3 {[%emt 0:07:13]} Re7 {[%emt 0:03:45]} 28. Rf8+ {[%emt 0:08:50]} Rf7 {[%emt 0:00:42]} 29. Rh8 {[%emt 0:00:25]} Rh7 {[%emt 0:00:17]} 30. Rxh7 Bxh7 {[%emt 0:00:20]} 31. Bd7 {[%emt 0:10:01]} Bg8 {[%emt 0:04:33]} 32. Bc8 {[%emt 0:00:40]} Bxc4 {[%emt 0:00:15]} 33. Bxb7 {[%emt 0:00:07]} 1-0

[Event "1st Sergiy Shystarev Memorial 2020"]
[Site "Kyiv"]
[Date "2020.08.30"]
[Round "8.1"]
[White "Roshka, Yevgeniy"]
[Black "Kislinsky, Alexey"]
[Result "1-0"]
[ECO "A56"]
[WhiteElo "2455"]
[BlackElo "2452"]
[Annotator "ChessBase"]
[PlyCount "89"]
[EventDate "2020.08.25"]
[EventCountry "UKR"]
[SourceTitle "playchess.com"]
[Source "ChessBase"]
[SourceQuality "1"]
[TimeControl "5400+30"]

1. d4 {[%emt 0:06:32]} Nf6 {[%emt 0:00:14]} 2. c4 {[%emt 0:00:02]} c5 {[%emt 0:00:43]} 3. d5 {[%emt 0:00:01]} g6 {[%emt 0:00:29]} 4. Nc3 {[%emt 0:00:09]} Bg7 {[%emt 0:00:08]} 5. e4 {[%emt 0:00:04]} d6 {[%emt 0:00:06]} 6. Nge2 {[%emt 0:00:04]} b5 {[%emt 0:00:51]} 7. cxb5 {[%emt 0:00:08]} a6 {[%emt 0:00:04]} 8. f3 {[%emt 0:09:59]} O-O {[%emt 0:02:45]} 9. Nf4 {[%emt 0:06:04]} Nbd7 {[%emt 0:02:22]} 10. Be3 {[%emt 0:00:41]} Ne5 {[%emt 0:01:13]} 11. Be2 {[%emt 0:05:20]} axb5 {[%emt 0:00:43]} 12. Bxb5 {[%emt 0:02:04]} Ba6 {[%emt 0:01:13]} 13. Bxa6 Rxa6 {[%emt 0:00:08]} 14. Qe2 {[%emt 0:03:24]} Qa8 {[%emt 0:01:23]} 15. O-O {[%emt 0:02:45]} Rb8 {[%emt 0:00:51]} 16. Nh3 {[%emt 0:07:12]} Rab6 {[%emt 0:01:22]} 17. b3 {[%emt 0:01:40]} Rb4 {[%emt 0:00:20]} 18. Nf2 {[%emt 0:00:51]} c4 {[%emt 0:02:07]} 19. Rfc1 {[%emt 0:05:33]} Qa6 {[%emt 0:07:18]} 20. Ncd1 {[%emt 0:08:21]} Ne8 {[%emt 0:04:38]} 21. bxc4 {[%emt 0:09:37]} Nc7 {[%emt 0:02:31]} 22. a3 {[%emt 0:03:47]} Rxc4 {[%emt 0:01:01]} 23. Rab1 {[%emt 0:01:10]} Rxb1 {[%emt 0:03:24]} 24. Rxb1 {[%emt 0:00:02]} Nd7 {[%emt 0:00:09]} 25. Rb7 {[%emt 0:03:18]} Qa4 {[%emt 0:03:42]} 26. Nb2 {[%emt 0:05:49]} Bxb2 {[%emt 0:00:09]} 27. Qxb2 {[%emt 0:00:07]} Qa5 {[%emt 0:03:17]} 28. Nd3 {[%emt 0:03:16]} f6 {[%emt 0:05:29]} 29. Ra7 {[%emt 0:04:29]} Qc3 {[%emt 0:02:46]} 30. Qxc3 {[%emt 0:00:01]} Rxc3 {[%emt 0:00:08]} 31. Nb4 {[%emt 0:00:05]} Ne5 {[%emt 0:04:37]} 32. Bd2 {[%emt 0:00:07]} Rc5 {[%emt 0:03:25]} 33. Nc6 {[%emt 0:01:33]} Nb5 {[%emt 0:00:11]} 34. Rxe7 {[%emt 0:01:59]} Nxc6 {[%emt 0:01:12]} 35. dxc6 {[%emt 0:00:02]} Rxc6 {[%emt 0:00:06]} 36. a4 {[%emt 0:00:29]} Rc7 {[%emt 0:02:23]} 37. Rxc7 {[%emt 0:01:02]} Nxc7 {[%emt 0:00:05]} 38. Bb4 {[%emt 0:00:11]} d5 {[%emt 0:00:16]} 39. Ba5 {[%emt 0:00:11]} Na6 {[%emt 0:00:10]} 40. exd5 {[%emt 0:00:01]} Nc5 {[%emt 0:00:12]} 41. d6 {[%emt 0:00:01]} Kf7 {[%emt 0:00:08]} 42. Bb6 {[%emt 0:00:15]} Nd7 {[%emt 0:00:14]} 43. a5 {[%emt 0:00:09]} Ke6 {[%emt 0:00:05]} 44. Bc7 {[%emt 0:00:04]} Kd5 {[%emt 0:00:46]} 45. Kf2 {[%emt 0:00:43]} 1-0

[Event "1st Sergiy Shystarev Memorial 2020"]
[Site "Kyiv"]
[Date "2020.08.30"]
[Round "8.2"]
[White "Sivuk, Vitaly"]
[Black "Matviishen, Viktor"]
[Result "1-0"]
[ECO "D43"]
[WhiteElo "2545"]
[BlackElo "2505"]
[Annotator "ChessBase"]
[PlyCount "113"]
[EventDate "2020.08.25"]
[EventCountry "UKR"]
[SourceTitle "playchess.com"]
[Source "ChessBase"]
[SourceQuality "1"]
[TimeControl "5400+30"]

1. c4 {[%emt 0:00:00]} c6 {[%emt 0:00:00]} 2. d4 {[%emt 0:00:00]} d5 {[%emt 0:00:00]} 3. Nf3 {[%emt 0:00:02]} Nf6 {[%emt 0:00:00]} 4. Nc3 {[%emt 0:00:09]} e6 {[%emt 0:00:00]} 5. Bg5 {[%emt 0:00:15]} h6 {[%emt 0:00:00]} 6. Bh4 {[%emt 0:00:10]} dxc4 {[%emt 0:00:12]} 7. e4 {[%emt 0:00:08]} g5 {[%emt 0:00:03]} 8. Bg3 {[%emt 0:00:08]} b5 {[%emt 0:00:04]} 9. h4 {[%emt 0:00:20]} g4 {[%emt 0:00:05]} 10. Ne5 {[%emt 0:00:05]} Nbd7 {[%emt 0:00:50]} 11. Be2 {[%emt 0:00:47]} Bb7 {[%emt 0:01:08]} 12. Nxd7 {[%emt 0:02:26]} Qxd7 {[%emt 0:00:06]} 13. Be5 {[%emt 0:00:13]} Qe7 {[%emt 0:00:08]} 14. Qc2 {[%emt 0:01:28]} Rg8 {[%emt 0:06:14]} 15. b3 {[%emt 0:01:04]} Nd7 {[%emt 0:00:14]} 16. Bg3 {[%emt 0:00:11]} b4 {[%emt 0:00:06]} 17. Na4 {[%emt 0:00:12]} c3 {[%emt 0:00:05]} 18. a3 {[%emt 0:01:48]} Bg7 {[%emt 0:07:10]} 19. e5 {[%emt 0:06:49]} a5 {[%emt 0:26:37]} 20. axb4 {[%emt 0:00:16]} axb4 {[%emt 0:00:02]} 21. O-O {[%emt 0:03:49]} c5 {[%emt 0:04:15]} 22. Bb5 {[%emt 0:07:29]} cxd4 {[%emt 0:02:11]} 23. Nb6 {[%emt 0:06:12]} Rxa1 {[%emt 0:04:03]} 24. Rxa1 {[%emt 0:00:12]} Qc5 {[%emt 0:00:44]} 25. Qh7 {[%emt 0:03:59]} Qxb5 {[%emt 0:09:05]} 26. Qxg8+ {[%emt 0:00:15]} Bf8 {[%emt 0:00:44]} 27. Nc4 {[%emt 0:00:20]} Qd5 {[%emt 0:07:05]} 28. Nd6+ {[%emt 0:00:14]} Kd8 {[%emt 0:00:03]} 29. Nxb7+ {[%emt 0:00:26]} Qxb7 {[%emt 0:00:06]} 30. Bf4 {[%emt 0:17:54]} Ke7 {[%emt 0:10:30]} 31. Qxg4 {[%emt 0:08:57]} d3 {[%emt 0:01:56]} 32. Be3 {[%emt 0:06:06]} d2 {[%emt 0:00:25]} 33. Kh2 {[%emt 0:15:39]} Ke8 {[%emt 0:01:43]} 34. Ra5 {[%emt 0:04:57]} Qc6 {[%emt 0:12:39]} 35. Kh3 {[%emt 0:09:27]} Kd8 {[%emt 0:00:05]} 36. Qe2 {[%emt 0:01:01]} Kc8 {[%emt 0:02:51]} 37. f3 {[%emt 0:01:58]} h5 {[%emt 0:03:05]} 38. Bxd2 {[%emt 0:01:33]} cxd2 {[%emt 0:00:09]} 39. Qxd2 {[%emt 0:00:02]} Be7 {[%emt 0:03:59]} 40. Qf4 {[%emt 0:01:05]} f6 {[%emt 0:00:43]} 41. exf6 {[%emt 0:00:20]} Nxf6 {[%emt 0:00:03]} 42. Ra7 {[%emt 0:01:18]} Nd5 {[%emt 0:00:19]} 43. Qe5 {[%emt 0:00:50]} Bf6 {[%emt 0:00:25]} 44. Qe4 {[%emt 0:00:24]} Qd6 {[%emt 0:00:46]} 45. g3 {[%emt 0:00:23]} Bd8 {[%emt 0:00:19]} 46. Rg7 {[%emt 0:00:35]} Qa6 {[%emt 0:00:11]} 47. Qe1 {[%emt 0:01:01]} Be7 {[%emt 0:00:56]} 48. f4 {[%emt 0:00:28]} Kd7 {[%emt 0:00:27]} 49. Rg6 {[%emt 0:00:31]} Bf6 {[%emt 0:00:45]} 50. Qd1 {[%emt 0:00:09]} Ke7 {[%emt 0:00:09]} 51. Rh6 {[%emt 0:00:16]} Ne3 {[%emt 0:00:43]} 52. Rh7+ {[%emt 0:00:26]} Kf8 {[%emt 0:00:00]} 53. Qf3 {[%emt 0:01:00]} e5 {[%emt 0:01:26]} 54. Rxh5 {[%emt 0:00:19]} Qc8+ {[%emt 0:00:32]} 55. g4 {[%emt 0:00:14]} Qc3 {[%emt 0:00:28]} 56. fxe5 {[%emt 0:00:29]} Nd5 {[%emt 0:00:17]} 57. Rf5 {[%emt 0:00:13]} 1-0

[Event "1st Sergiy Shystarev Memorial 2020"]
[Site "Kyiv"]
[Date "2020.08.30"]
[Round "8.4"]
[White "Vysochin, Spartak"]
[Black "Sydoryka, Vladyslav"]
[Result "1-0"]
[ECO "C11"]
[WhiteElo "2501"]
[BlackElo "2355"]
[Annotator "ChessBase"]
[PlyCount "73"]
[EventDate "2020.08.25"]
[EventCountry "UKR"]
[SourceTitle "playchess.com"]
[Source "ChessBase"]
[SourceQuality "1"]
[TimeControl "5400+30"]

1. e4 {[%emt 0:00:00]} c6 {[%emt 0:00:00]} 2. d4 {[%emt 0:00:00]} d5 {[%emt 0:00:00]} 3. f3 {[%emt 0:00:00]} e6 {[%emt 0:00:02]} 4. Nc3 {[%emt 0:00:02]} Nf6 {[%emt 0:00:08]} 5. e5 {[%emt 0:04:02]} Nfd7 {[%emt 0:00:13]} 6. f4 {[%emt 0:00:12]} c5 {[%emt 0:00:06]} 7. Nf3 {[%emt 0:00:04]} Nc6 {[%emt 0:00:07]} 8. Be3 {[%emt 0:00:05]} Qb6 9. Na4 Qa5+ {[%emt 0:01:16]} 10. c3 {[%emt 0:10:56]} cxd4 {[%emt 0:00:37]} 11. b4 {[%emt 0:00:21]} Qc7 {[%emt 0:08:21]} 12. Nxd4 {[%emt 0:03:42]} Nxd4 {[%emt 0:08:30]} 13. Bxd4 Be7 {[%emt 0:06:34]} 14. Bd3 {[%emt 0:03:09]} a6 15. O-O {[%emt 0:04:25]} O-O {[%emt 0:07:29]} 16. Qe2 {[%emt 0:05:51]} g6 {[%emt 0:04:59]} 17. Qe3 {[%emt 0:02:23]} Rb8 {[%emt 0:10:47]} 18. Nb2 {[%emt 0:01:49]} b6 {[%emt 0:05:22]} 19. Nd1 {[%emt 0:02:03]} f5 20. exf6 Nxf6 {[%emt 0:00:42]} 21. Nf2 {[%emt 0:02:19]} Bd6 {[%emt 0:04:48]} 22. g3 {[%emt 0:02:17]} a5 {[%emt 0:05:12]} 23. a3 {[%emt 0:00:33]} Bd7 {[%emt 0:00:13]} 24. Rfe1 {[%emt 0:00:50]} b5 {[%emt 0:05:13]} 25. Bf1 {[%emt 0:01:13]} a4 {[%emt 0:00:45]} 26. Bg2 {[%emt 0:08:24]} h5 {[%emt 0:04:45]} 27. Bf3 {[%emt 0:01:34]} Rbe8 {[%emt 0:01:36]} 28. Nd3 {[%emt 0:00:33]} Re7 {[%emt 0:01:46]} 29. Ne5 {[%emt 0:01:03]} Be8 {[%emt 0:00:25]} 30. Ra2 {[%emt 0:01:28]} Nd7 {[%emt 0:01:20]} 31. Nxd7 {[%emt 0:06:21]} Bxd7 {[%emt 0:01:36]} 32. Rae2 {[%emt 0:02:13]} Qd8 {[%emt 0:12:16]} 33. Qd3 {[%emt 0:01:10]} Qe8 {[%emt 0:00:30]} 34. Bxd5 {[%emt 0:01:46]} exd5 {[%emt 0:00:17]} 35. Rxe7 {[%emt 0:00:04]} Bxe7 {[%emt 0:00:07]} 36. Rxe7 {[%emt 0:00:13]} Bf5 {[%emt 0:00:16]} 37. Qe3 {[%emt 0:00:29]} 1-0

[Event "1st Sergiy Shystarev Memorial 2020"]
[Site "Kyiv"]
[Date "2020.08.30"]
[Round "8.5"]
[White "Dolzhykova, Kateryna"]
[Black "Solodovnichenko, Yuri"]
[Result "0-1"]
[ECO "B06"]
[WhiteElo "2153"]
[BlackElo "2553"]
[Annotator "ChessBase"]
[PlyCount "110"]
[EventDate "2020.08.25"]
[EventCountry "UKR"]
[SourceTitle "playchess.com"]
[Source "ChessBase"]
[SourceQuality "1"]
[TimeControl "5400+30"]

1. e4 {[%emt 0:00:00]} g6 {[%emt 0:00:00]} 2. d4 {[%emt 0:00:00]} d6 {[%emt 0:00:00]} 3. Nc3 {[%emt 0:00:00]} Bg7 {[%emt 0:00:00]} 4. f4 {[%emt 0:00:09]} a6 {[%emt 0:00:00]} 5. a4 {[%emt 0:01:01]} Nc6 {[%emt 0:04:58]} 6. Be3 {[%emt 0:01:51]} Nf6 {[%emt 0:02:31]} 7. Be2 {[%emt 0:01:28]} e6 {[%emt 0:05:56]} 8. e5 {[%emt 0:06:28]} Nd5 {[%emt 0:00:53]} 9. Nxd5 {[%emt 0:00:10]} exd5 {[%emt 0:00:05]} 10. Bf3 {[%emt 0:01:50]} Be6 {[%emt 0:01:09]} 11. Ne2 {[%emt 0:03:34]} Qd7 {[%emt 0:02:18]} 12. c4 {[%emt 0:02:06]} dxe5 13. fxe5 {[%emt 0:01:16]} dxc4 {[%emt 0:07:25]} 14. d5 {[%emt 0:02:16]} Nxe5 {[%emt 0:00:21]} 15. dxe6 {[%emt 0:00:19]} Nd3+ {[%emt 0:03:12]} 16. Kf1 {[%emt 0:00:23]} Qxe6 {[%emt 0:00:06]} 17. Bd4 {[%emt 0:04:31]} O-O-O {[%emt 0:02:29]} 18. Bg1 {[%emt 0:06:42]} Rhe8 {[%emt 0:01:23]} 19. Qc2 {[%emt 0:04:33]} g5 {[%emt 0:01:19]} 20. g4 {[%emt 0:04:25]} f5 {[%emt 0:00:56]} 21. h3 {[%emt 0:02:09]} h5 {[%emt 0:00:05]} 22. gxh5 {[%emt 0:04:25]} g4 {[%emt 0:00:18]} 23. Bg2 {[%emt 0:01:59]} Nb4 {[%emt 0:01:57]} 24. Nf4 {[%emt 0:00:01]} Nxc2 {[%emt 0:00:16]} 25. Nxe6 {[%emt 0:00:01]} Rxe6 {[%emt 0:00:25]} 26. Rc1 {[%emt 0:00:01]} Bxb2 {[%emt 0:02:22]} 27. Rxc2 {[%emt 0:00:30]} c3 {[%emt 0:11:56]} 28. hxg4 {[%emt 0:05:06]} fxg4 {[%emt 0:00:04]} 29. Bc5 {[%emt 0:05:35]} Rd2 {[%emt 0:00:30]} 30. Rxd2 cxd2 {[%emt 0:00:04]} 31. Kf2 {[%emt 0:01:12]} g3+ 32. Kxg3 {[%emt 0:04:35]} Re1 {[%emt 0:00:32]} 33. Bh3+ {[%emt 0:00:03]} Kb8 {[%emt 0:02:30]} 34. Bb4 {[%emt 0:00:27]} d1=Q {[%emt 0:02:06]} 35. Bxe1 {[%emt 0:00:06]} Qd3+ {[%emt 0:00:14]} 36. Kh2 {[%emt 0:02:23]} Be5+ {[%emt 0:00:20]} 37. Kg1 {[%emt 0:00:04]} Bd4+ {[%emt 0:00:51]} 38. Kh2 {[%emt 0:00:02]} Qe2+ {[%emt 0:00:35]} 39. Bg2 {[%emt 0:00:17]} Be5+ {[%emt 0:00:21]} 40. Bg3 {[%emt 0:00:04]} Qxh5+ {[%emt 0:00:18]} 41. Kg1 {[%emt 0:00:33]} Qd1+ {[%emt 0:00:30]} 42. Kh2 {[%emt 0:00:05]} Bxg3+ {[%emt 0:00:08]} 43. Kxg3 {[%emt 0:00:03]} Qxa4 {[%emt 0:00:09]} 44. Kf2 {[%emt 0:00:12]} Qd4+ {[%emt 0:00:21]} 45. Ke2 {[%emt 0:00:02]} b5 {[%emt 0:00:10]} 46. Rd1 {[%emt 0:00:21]} Qe5+ {[%emt 0:00:08]} 47. Kf2 {[%emt 0:00:18]} Ka7 {[%emt 0:00:17]} 48. Bf3 {[%emt 0:00:08]} Kb6 {[%emt 0:00:31]} 49. Re1 {[%emt 0:00:02]} Qd4+ {[%emt 0:00:10]} 50. Ke2 {[%emt 0:00:02]} a5 {[%emt 0:00:23]} 51. Rd1 {[%emt 0:00:15]} Qe5+ {[%emt 0:00:07]} 52. Kd3 {[%emt 0:00:13]} c5 {[%emt 0:00:39]} 53. Rh1 {[%emt 0:00:39]} c4+ {[%emt 0:00:16]} 54. Kd2 {[%emt 0:00:23]} a4 {[%emt 0:00:57]} 55. Rh5 {[%emt 0:00:11]} Qb2+ {[%emt 0:00:09]} 0-1

[Event "1st Sergiy Shystarev Memorial 2020"]
[Site "Kyiv"]
[Date "2020.08.30"]
[Round "8.6"]
[White "Hryzlova, Sofiia"]
[Black "Malakhatko, Vadim"]
[Result "1/2-1/2"]
[ECO "A42"]
[WhiteElo "1940"]
[BlackElo "2488"]
[Annotator "ChessBase"]
[PlyCount "120"]
[EventDate "2020.08.25"]
[EventCountry "UKR"]
[SourceTitle "playchess.com"]
[Source "ChessBase"]
[SourceQuality "1"]
[TimeControl "5400+30"]

1. c4 {[%emt 0:06:21]} g6 {[%emt 0:00:50]} 2. Nc3 {[%emt 0:00:16]} Bg7 {[%emt 0:00:17]} 3. d4 {[%emt 0:00:12]} d6 {[%emt 0:00:07]} 4. e4 {[%emt 0:00:18]} e5 {[%emt 0:00:08]} 5. d5 {[%emt 0:00:08]} f5 {[%emt 0:00:13]} 6. Bd3 {[%emt 0:06:33]} Nf6 {[%emt 0:05:05]} 7. exf5 {[%emt 0:06:55]} gxf5 {[%emt 0:04:02]} 8. Bg5 {[%emt 0:01:36]} O-O {[%emt 0:00:27]} 9. Qd2 {[%emt 0:04:24]} Qe8 {[%emt 0:04:14]} 10. O-O-O {[%emt 0:04:18]} Na6 {[%emt 0:03:27]} 11. Re1 {[%emt 0:05:42]} Qg6 {[%emt 0:05:53]} 12. f3 {[%emt 0:04:31]} Nc5 {[%emt 0:06:18]} 13. Bc2 {[%emt 0:00:56]} a5 {[%emt 0:01:53]} 14. Nh3 {[%emt 0:04:19]} a4 {[%emt 0:14:55]} 15. Nb5 {[%emt 0:04:11]} Bd7 {[%emt 0:07:31]} 16. g4 {[%emt 0:08:22]} e4 {[%emt 0:04:30]} 17. Nf4 {[%emt 0:07:15]} Qf7 {[%emt 0:03:39]} 18. gxf5 {[%emt 0:01:53]} Bxf5 {[%emt 0:03:12]} 19. Nd4 {[%emt 0:00:56]} Bd7 {[%emt 0:00:07]} 20. fxe4 {[%emt 0:01:48]} Rae8 {[%emt 0:01:40]} 21. Qg2 {[%emt 0:02:39]} Kh8 {[%emt 0:10:14]} 22. Rhf1 {[%emt 0:07:06]} a3 {[%emt 0:01:29]} 23. b4 {[%emt 0:01:05]} Na6 {[%emt 0:02:53]} 24. Nd3 {[%emt 0:06:47]} Qh5 {[%emt 0:01:07]} 25. Nf5 {[%emt 0:01:57]} Ng4 {[%emt 0:08:30]} 26. h4 {[%emt 0:02:06]} Bxf5 {[%emt 0:02:12]} 27. exf5 {[%emt 0:00:40]} Rxe1+ {[%emt 0:00:26]} 28. Rxe1 {[%emt 0:00:19]} Ne5 {[%emt 0:03:09]} 29. Nf4 {[%emt 0:03:52]} Qf7 {[%emt 0:00:06]} 30. Qe4 {[%emt 0:00:39]} Bf6 {[%emt 0:03:50]} 31. c5 {[%emt 0:00:34]} Rg8 {[%emt 0:00:38]} 32. Ne6 {[%emt 0:01:06]} h6 {[%emt 0:01:34]} 33. b5 {[%emt 0:01:24]} Nxc5 {[%emt 0:00:27]} 34. Bxf6+ {[%emt 0:00:42]} Qxf6 {[%emt 0:00:06]} 35. Nxc5 {[%emt 0:00:12]} Rg4 {[%emt 0:01:31]} 36. Qe2 {[%emt 0:03:13]} Rc4 {[%emt 0:00:35]} 37. Nb3 {[%emt 0:00:26]} Rxh4 {[%emt 0:00:31]} 38. Rg1 {[%emt 0:00:34]} Kh7 {[%emt 0:00:23]} 39. b6 {[%emt 0:01:01]} cxb6 {[%emt 0:00:12]} 40. Qb5 {[%emt 0:00:58]} Rh2 {[%emt 0:00:33]} 41. Kb1 {[%emt 0:00:26]} Nf7 {[%emt 0:00:24]} 42. Nc1 {[%emt 0:00:24]} h5 {[%emt 0:01:00]} 43. Qxb6 {[%emt 0:00:59]} h4 {[%emt 0:00:18]} 44. Qxb7 {[%emt 0:00:10]} h3 {[%emt 0:00:25]} 45. Rg6 {[%emt 0:00:36]} Qb2+ {[%emt 0:00:11]} 46. Qxb2 {[%emt 0:00:07]} axb2 {[%emt 0:00:04]} 47. Nd3 {[%emt 0:00:24]} Rg2 {[%emt 0:00:53]} 48. Nf4 {[%emt 0:01:18]} h2 {[%emt 0:00:38]} 49. Rxg2 {[%emt 0:00:09]} h1=Q+ {[%emt 0:00:05]} 50. Kxb2 {[%emt 0:00:07]} Ne5 {[%emt 0:00:40]} 51. f6+ {[%emt 0:00:26]} Kh8 {[%emt 0:00:25]} 52. Rg5 {[%emt 0:01:17]} Qf3 {[%emt 0:01:01]} 53. Ng6+ {[%emt 0:01:07]} Nxg6 {[%emt 0:00:08]} 54. Rxg6 {[%emt 0:00:04]} Qf4 {[%emt 0:00:46]} 55. Kb3 {[%emt 0:00:47]} Qd2 {[%emt 0:00:53]} 56. Kb2 {[%emt 0:00:37]} Qb4+ {[%emt 0:00:21]} 57. Kc1 {[%emt 0:00:20]} Qe1+ {[%emt 0:00:40]} 58. Kb2 {[%emt 0:00:38]} Qe5+ {[%emt 0:00:13]} 59. Kb1 {[%emt 0:00:19]} Qf4 {[%emt 0:00:51]} 60. Kb2 {[%emt 0:00:30]} Qb4+ {[%emt 0:00:29]} 1/2-1/2